[Event "Early-Titled-Tuesday-Blitz-May-28-2024"]
[Site "Chess.com"]
[Date "2024.05.28"]
[Round "2"]
[White "rionelG"]
[Black "toninhojit"]
[Result "0-1"]
[WhiteElo "2309"]
[BlackElo "2532"]
[TimeControl "180+1"]
[EndTime "8:17:40 PDT"]
[Termination "toninhojit won by checkmate"]

1. e4 {[%clk 0:03:00.9]} 1... c5 {[%clk 0:03:00.1]} 2. g3 {[%clk 0:03:00.5]}
2... Nc6 {[%clk 0:02:59.8]} 3. Bg2 {[%clk 0:03:00.3]} 3... g6 {[%clk 0:03:00.3]}
4. Ne2 {[%clk 0:03:00.7]} 4... Bg7 {[%clk 0:02:59.8]} 5. c3 {[%clk 0:03:01.6]}
5... e5 {[%clk 0:02:59.9]} 6. d3 {[%clk 0:03:01.5]} 6... Nge7 {[%clk 0:03:00.2]}
7. Be3 {[%clk 0:03:01.8]} 7... O-O {[%clk 0:03:00.8]} 8. Bxc5 {[%clk 0:03:01.3]}
8... d6 {[%clk 0:03:01.1]} 9. Be3 {[%clk 0:03:01.2]} 9... d5 {[%clk 0:03:01.8]}
10. O-O {[%clk 0:02:49.5]} 10... Be6 {[%clk 0:03:01.5]} 11. f4 {[%clk
0:02:43.8]} 11... f5 {[%clk 0:02:59.9]} 12. Nd2 {[%clk 0:02:30.4]} 12... dxe4
{[%clk 0:02:58.2]} 13. dxe4 {[%clk 0:02:30.3]} 13... Qd3 {[%clk 0:02:57.7]} 14.
exf5 {[%clk 0:02:02.3]} 14... Qxe3+ {[%clk 0:02:56.2]} 15. Kh1 {[%clk
0:02:01.2]} 15... Nxf5 {[%clk 0:02:54]} 16. Rf3 {[%clk 0:01:48.8]} 16... Qb6
{[%clk 0:02:53.7]} 17. Qg1 {[%clk 0:01:39.9]} 17... Qxg1+ {[%clk 0:02:52.9]} 18.
Kxg1 {[%clk 0:01:40.8]} 18... Rad8 {[%clk 0:02:53.1]} 19. Ne4 {[%clk 0:01:39.5]}
19... Bd5 {[%clk 0:02:48.8]} 20. Rf2 {[%clk 0:01:39.6]} 20... Ne3 {[%clk
0:02:43]} 21. Bh1 {[%clk 0:01:39.1]} 21... Ng4 {[%clk 0:02:42.6]} 22. Rff1
{[%clk 0:01:36.8]} 22... Bc4 {[%clk 0:02:39.4]} 23. Rfe1 {[%clk 0:01:33.5]}
23... Bxe2 {[%clk 0:02:33.8]} 24. Rxe2 {[%clk 0:01:32.9]} 24... exf4 {[%clk
0:02:34.7]} 25. Nc5 {[%clk 0:01:26.7]} 25... f3 {[%clk 0:02:26.3]} 26. Re4
{[%clk 0:01:25.4]} 26... h5 {[%clk 0:02:17.8]} 27. h3 {[%clk 0:01:22.7]} 27...
Nf6 {[%clk 0:02:15]} 28. Rf4 {[%clk 0:01:17.5]} 28... Bh6 {[%clk 0:02:04.8]} 29.
Rxf3 {[%clk 0:01:15.8]} 29... Ne5 {[%clk 0:02:05.5]} 30. Ne6 {[%clk 0:01:03.5]}
30... Nxf3+ {[%clk 0:01:56.7]} 31. Bxf3 {[%clk 0:01:04.4]} 31... Rd2 {[%clk
0:01:53]} 32. Nxf8 {[%clk 0:01:03.1]} 32... Kxf8 {[%clk 0:01:53.9]} 33. Bxb7
{[%clk 0:00:52.6]} 33... Rxb2 {[%clk 0:01:54]} 34. Rf1 {[%clk 0:00:50]} 34...
Kg7 {[%clk 0:01:47.8]} 35. Bc8 {[%clk 0:00:43]} 35... Nd5 {[%clk 0:01:45]} 36.
Be6 {[%clk 0:00:39.5]} 36... Be3+ {[%clk 0:01:32.9]} 37. Kh1 {[%clk 0:00:39.1]}
37... Nf6 {[%clk 0:01:33.6]} 38. Bb3 {[%clk 0:00:32]} 38... Ne4 {[%clk
0:01:30.6]} 39. Rf3 {[%clk 0:00:28.6]} 39... Nf2+ {[%clk 0:01:04.2]} 40. Kg2
{[%clk 0:00:28.1]} 40... Ng4+ {[%clk 0:01:04.8]} 41. Kh1 {[%clk 0:00:27]} 41...
Rh2# {[%clk 0:01:03.9]} 0-1

[Event "Early-Titled-Tuesday-Blitz-May-28-2024"]
[Site "Chess.com"]
[Date "2024.05.28"]
[Round "2"]
[White "Kostya0705"]
[Black "DanielDardha2005"]
[Result "0-1"]
[WhiteElo "2586"]
[BlackElo "2886"]
[TimeControl "180+1"]
[EndTime "8:17:42 PDT"]
[Termination "DanielDardha2005 won on time"]

1. e4 {[%clk 0:03:00.9]} 1... c6 {[%clk 0:02:55.7]} 2. d4 {[%clk 0:03:00.2]}
2... d5 {[%clk 0:02:55.6]} 3. e5 {[%clk 0:03:01]} 3... Bf5 {[%clk 0:02:55.4]} 4.
Nf3 {[%clk 0:03:01.3]} 4... e6 {[%clk 0:02:55.5]} 5. Be2 {[%clk 0:03:01.1]} 5...
c5 {[%clk 0:02:55.2]} 6. Be3 {[%clk 0:03:01.5]} 6... cxd4 {[%clk 0:02:54.2]} 7.
Nxd4 {[%clk 0:03:00.8]} 7... Ne7 {[%clk 0:02:54.9]} 8. Nc3 {[%clk 0:02:59.9]}
8... Nbc6 {[%clk 0:02:53.9]} 9. f4 {[%clk 0:02:54.5]} 9... Nxd4 {[%clk
0:02:52.1]} 10. Bxd4 {[%clk 0:02:55.4]} 10... Nc6 {[%clk 0:02:52.8]} 11. O-O
{[%clk 0:02:48.9]} 11... Bxc2 {[%clk 0:02:38.9]} 12. Qxc2 {[%clk 0:02:44.3]}
12... Nxd4 {[%clk 0:02:38.7]} 13. Qa4+ {[%clk 0:02:44.9]} 13... Nc6 {[%clk
0:02:39.4]} 14. f5 {[%clk 0:02:44.7]} 14... Bc5+ {[%clk 0:02:38.7]} 15. Kh1
{[%clk 0:02:44.5]} 15... O-O {[%clk 0:02:38.2]} 16. f6 {[%clk 0:02:29.2]} 16...
Nxe5 {[%clk 0:02:31.6]} 17. fxg7 {[%clk 0:02:25.4]} 17... Kxg7 {[%clk
0:02:32.5]} 18. Rad1 {[%clk 0:02:18.2]} 18... Ng6 {[%clk 0:02:26.8]} 19. Ne4
{[%clk 0:02:15.7]} 19... Be7 {[%clk 0:02:17.8]} 20. Ng3 {[%clk 0:02:11.4]} 20...
Qb6 {[%clk 0:02:02.7]} 21. Bd3 {[%clk 0:02:03.2]} 21... Qxb2 {[%clk 0:01:49.2]}
22. Qg4 {[%clk 0:01:43.3]} 22... Qe5 {[%clk 0:01:34.8]} 23. Rde1 {[%clk
0:01:12.2]} 23... Qg5 {[%clk 0:01:32.3]} 24. Qd4+ {[%clk 0:01:11.4]} 24... Kg8
{[%clk 0:01:18.7]} 25. Rf3 {[%clk 0:00:51.3]} 25... Rac8 {[%clk 0:01:15.8]} 26.
Qxa7 {[%clk 0:00:22.3]} 26... Rc1 {[%clk 0:01:12.6]} 27. Rxc1 {[%clk 0:00:21.2]}
27... Qxc1+ {[%clk 0:01:13.5]} 28. Rf1 {[%clk 0:00:21.3]} 28... Qa3 {[%clk
0:01:05.1]} 29. Qd4 {[%clk 0:00:16.9]} 29... Bc5 {[%clk 0:01:04.8]} 30. Qf6
{[%clk 0:00:03.3]} 30... Qxd3 {[%clk 0:01:04.8]} 31. Nh5 {[%clk 0:00:01.8]}
31... Bd4 {[%clk 0:01:05.1]} 0-1

[Event "Early-Titled-Tuesday-Blitz-May-28-2024"]
[Site "Chess.com"]
[Date "2024.05.28"]
[Round "2"]
[White "DvaHrasta"]
[Black "Lily_Schirmbeck"]
[Result "1-0"]
[WhiteElo "2433"]
[BlackElo "1700"]
[TimeControl "180+1"]
[EndTime "8:17:44 PDT"]
[Termination "DvaHrasta won by resignation"]

1. c4 {[%clk 0:02:55.3]} 1... c5 {[%clk 0:02:55.8]} 2. g3 {[%clk 0:02:55.1]}
2... g6 {[%clk 0:02:50.9]} 3. Bg2 {[%clk 0:02:55.1]} 3... Bg7 {[%clk 0:02:49.5]}
4. Nc3 {[%clk 0:02:55.2]} 4... Nc6 {[%clk 0:02:49.7]} 5. Nf3 {[%clk 0:02:55.1]}
5... Nf6 {[%clk 0:02:49.7]} 6. O-O {[%clk 0:02:54.9]} 6... O-O {[%clk 0:02:50]}
7. d4 {[%clk 0:02:55.2]} 7... cxd4 {[%clk 0:02:48.2]} 8. Nxd4 {[%clk 0:02:56.1]}
8... Nxd4 {[%clk 0:02:45.3]} 9. Qxd4 {[%clk 0:02:56]} 9... d6 {[%clk 0:02:45.5]}
10. Bg5 {[%clk 0:02:55.9]} 10... Rb8 {[%clk 0:02:23.9]} 11. Qxa7 {[%clk
0:02:49.2]} 11... Bd7 {[%clk 0:02:18.4]} 12. Rfd1 {[%clk 0:02:40.4]} 12... Qc7
{[%clk 0:01:59.2]} 13. Rac1 {[%clk 0:02:25.3]} 13... h6 {[%clk 0:01:32.9]} 14.
Bxf6 {[%clk 0:02:14.8]} 14... Bxf6 {[%clk 0:01:18.1]} 15. Nd5 {[%clk 0:02:12.9]}
15... Qc8 {[%clk 0:00:54.9]} 16. Nxf6+ {[%clk 0:02:10.3]} 16... exf6 {[%clk
0:00:55.3]} 17. Rxd6 {[%clk 0:02:05.6]} 17... Kg7 {[%clk 0:00:49.6]} 18. Qd4
{[%clk 0:01:56.3]} 18... Be6 {[%clk 0:00:38.1]} 19. Bd5 {[%clk 0:01:55.4]} 19...
Bxd5 {[%clk 0:00:28.2]} 20. Qxf6+ {[%clk 0:01:50.5]} 20... Kg8 {[%clk
0:00:23.5]} 21. Rxd5 {[%clk 0:01:49.6]} 21... b5 {[%clk 0:00:22.3]} 22. c5
{[%clk 0:01:45.9]} 22... Rd8 {[%clk 0:00:15.9]} 23. Rxd8+ {[%clk 0:01:35.9]}
23... Qxd8 {[%clk 0:00:14.9]} 24. Qxd8+ {[%clk 0:01:35.5]} 24... Rxd8 {[%clk
0:00:15.8]} 25. c6 {[%clk 0:01:34.8]} 25... Rc8 {[%clk 0:00:16]} 26. c7 {[%clk
0:01:34.2]} 26... Kf8 {[%clk 0:00:16.1]} 27. f4 {[%clk 0:01:33]} 27... Ke7
{[%clk 0:00:16.2]} 28. Kf2 {[%clk 0:01:33.4]} 28... Kd7 {[%clk 0:00:16.4]} 29.
e4 {[%clk 0:01:30.4]} 29... Rxc7 {[%clk 0:00:16.1]} 30. Rxc7+ {[%clk 0:01:29.6]}
30... Kxc7 {[%clk 0:00:17]} 31. Ke3 {[%clk 0:01:29.7]} 31... Kd6 {[%clk
0:00:16.4]} 32. Kd4 {[%clk 0:01:29.9]} 32... f6 {[%clk 0:00:13.9]} 33. a3 {[%clk
0:01:28.1]} 33... h5 {[%clk 0:00:10.1]} 34. h4 {[%clk 0:01:26.7]} 34... Kc6
{[%clk 0:00:07.7]} 35. b3 {[%clk 0:01:26]} 35... Kd6 {[%clk 0:00:07]} 36. a4
{[%clk 0:01:25.8]} 36... bxa4 {[%clk 0:00:06]} 37. bxa4 {[%clk 0:01:26]} 37...
Kc6 {[%clk 0:00:02.5]} 38. e5 {[%clk 0:01:26]} 38... fxe5+ {[%clk 0:00:02.5]}
39. Kxe5 {[%clk 0:01:24.3]} 39... Kd7 {[%clk 0:00:03.1]} 40. Kf6 {[%clk
0:01:24.1]} 40... Kd6 {[%clk 0:00:02.7]} 41. a5 {[%clk 0:01:23.7]} 1-0

[Event "Early-Titled-Tuesday-Blitz-May-28-2024"]
[Site "Chess.com"]
[Date "2024.05.28"]
[Round "2"]
[White "chucksterf10"]
[Black "wonderfultime"]
[Result "0-1"]
[WhiteElo "2631"]
[BlackElo "3028"]
[TimeControl "180+1"]
[EndTime "8:17:46 PDT"]
[Termination "wonderfultime won by resignation"]

1. Nf3 {[%clk 0:03:00.9]} 1... d5 {[%clk 0:02:59.9]} 2. b3 {[%clk 0:03:01.2]}
2... Bg4 {[%clk 0:02:53.8]} 3. Ba3 {[%clk 0:03:00.1]} 3... Nd7 {[%clk 0:02:50]}
4. d4 {[%clk 0:03:00]} 4... g6 {[%clk 0:02:44.6]} 5. e3 {[%clk 0:02:59.3]} 5...
Bg7 {[%clk 0:02:44.6]} 6. c4 {[%clk 0:02:59.7]} 6... c6 {[%clk 0:02:41.9]} 7.
Nc3 {[%clk 0:02:59]} 7... Ngf6 {[%clk 0:02:41.2]} 8. Be2 {[%clk 0:02:57.1]} 8...
O-O {[%clk 0:02:40.9]} 9. h3 {[%clk 0:02:57]} 9... Bxf3 {[%clk 0:02:40.9]} 10.
Bxf3 {[%clk 0:02:57.9]} 10... Qa5 {[%clk 0:02:40.1]} 11. Bb2 {[%clk 0:02:57.1]}
11... e5 {[%clk 0:02:38.2]} 12. cxd5 {[%clk 0:02:55.1]} 12... exd4 {[%clk
0:02:32.1]} 13. exd4 {[%clk 0:02:36.2]} 13... Nxd5 {[%clk 0:02:30.4]} 14. Qd2
{[%clk 0:02:35.2]} 14... Rfe8+ {[%clk 0:02:29.2]} 15. Be2 {[%clk 0:02:32.5]}
15... Bh6 {[%clk 0:02:22]} 16. Qc2 {[%clk 0:02:09.2]} 16... Nf4 {[%clk
0:01:50.7]} 17. O-O {[%clk 0:01:42.3]} 17... Qg5 {[%clk 0:01:50.2]} 18. Bg4
{[%clk 0:01:28.6]} 18... Nf6 {[%clk 0:01:35.2]} 19. Qd1 {[%clk 0:01:18.6]} 19...
Nxg4 {[%clk 0:01:15.5]} 20. Qxg4 {[%clk 0:01:19.5]} 20... Qxg4 {[%clk
0:01:13.9]} 21. hxg4 {[%clk 0:01:20.4]} 21... Rad8 {[%clk 0:01:13]} 22. Rad1
{[%clk 0:01:14.7]} 22... Ne2+ {[%clk 0:01:11.5]} 23. Kh1 {[%clk 0:00:45.8]}
23... Nxd4 {[%clk 0:01:11]} 24. Na4 {[%clk 0:00:46]} 24... Bg7 {[%clk
0:01:06.6]} 25. Nc5 {[%clk 0:00:45.1]} 25... b6 {[%clk 0:01:07]} 26. Nd3 {[%clk
0:00:36.9]} 26... c5 {[%clk 0:01:07.5]} 27. b4 {[%clk 0:00:36.7]} 27... c4
{[%clk 0:01:07.4]} 28. Nf4 {[%clk 0:00:36.6]} 28... Nc6 {[%clk 0:00:47.7]} 29.
Bxg7 {[%clk 0:00:26.7]} 29... Kxg7 {[%clk 0:00:48.6]} 30. b5 {[%clk 0:00:27.4]}
30... Nb4 {[%clk 0:00:46.1]} 31. Rc1 {[%clk 0:00:25]} 31... Re4 {[%clk
0:00:44.6]} 32. g3 {[%clk 0:00:24.3]} 32... Rd2 {[%clk 0:00:44.1]} 33. a3 {[%clk
0:00:23.5]} 33... Nd3 {[%clk 0:00:43.6]} 34. Rc3 {[%clk 0:00:23.7]} 34... Nxf2+
{[%clk 0:00:42.6]} 35. Kg1 {[%clk 0:00:23.9]} 35... Nxg4 {[%clk 0:00:41.4]} 0-1

[Event "Early-Titled-Tuesday-Blitz-May-28-2024"]
[Site "Chess.com"]
[Date "2024.05.28"]
[Round "2"]
[White "Konavets"]
[Black "Boundless_Strike"]
[Result "1-0"]
[WhiteElo "3071"]
[BlackElo "2640"]
[TimeControl "180+1"]
[EndTime "8:17:47 PDT"]
[Termination "Konavets won by resignation"]

1. d4 {[%clk 0:03:00.9]} 1... e5 {[%clk 0:02:59.9]} 2. dxe5 {[%clk 0:03:00.9]}
2... d6 {[%clk 0:03:00.3]} 3. Nf3 {[%clk 0:02:58.8]} 3... Bg4 {[%clk 0:02:59.9]}
4. Nc3 {[%clk 0:02:55.1]} 4... Nc6 {[%clk 0:02:59.6]} 5. h3 {[%clk 0:02:52.6]}
5... Bxf3 {[%clk 0:02:55.1]} 6. exf3 {[%clk 0:02:53.5]} 6... dxe5 {[%clk
0:02:55.5]} 7. Bd3 {[%clk 0:02:51.8]} 7... Bd6 {[%clk 0:02:41.5]} 8. O-O {[%clk
0:02:50.8]} 8... Nf6 {[%clk 0:02:41.3]} 9. Re1 {[%clk 0:02:50.9]} 9... Qe7
{[%clk 0:02:40]} 10. Bg5 {[%clk 0:02:51.2]} 10... O-O-O {[%clk 0:02:38.3]} 11.
Bf5+ {[%clk 0:02:51.6]} 11... Kb8 {[%clk 0:02:38.2]} 12. Nd5 {[%clk 0:02:52.5]}
12... Qf8 {[%clk 0:02:30.9]} 13. Bxf6 {[%clk 0:02:49.8]} 13... gxf6 {[%clk
0:02:29.5]} 14. c3 {[%clk 0:02:50.4]} 14... Bc5 {[%clk 0:02:16.9]} 15. b4 {[%clk
0:02:38.1]} 15... Ne7 {[%clk 0:01:55.2]} 16. bxc5 {[%clk 0:01:51.2]} 16... Nxd5
{[%clk 0:01:32.2]} 17. c6 {[%clk 0:01:51.6]} 17... b6 {[%clk 0:01:11.1]} 18. Qa4
{[%clk 0:01:45.3]} 18... a5 {[%clk 0:01:03.1]} 19. Qb5 {[%clk 0:01:41.7]} 19...
Qc5 {[%clk 0:00:48.6]} 20. Qxc5 {[%clk 0:01:41.8]} 20... bxc5 {[%clk 0:00:48.8]}
21. Rab1+ {[%clk 0:01:42.7]} 21... Nb6 {[%clk 0:00:32.3]} 22. Bd7 {[%clk
0:01:42.6]} 22... Ka7 {[%clk 0:00:24.3]} 23. Rb5 {[%clk 0:01:34.5]} 23... Nxd7
{[%clk 0:00:20.1]} 24. cxd7 {[%clk 0:01:33.9]} 24... Rxd7 {[%clk 0:00:21]} 25.
Reb1 {[%clk 0:01:33.9]} 25... Ka6 {[%clk 0:00:21.5]} 26. Rxc5 {[%clk 0:01:34.1]}
26... Rhd8 {[%clk 0:00:14.3]} 27. Rc6+ {[%clk 0:01:32.7]} 27... Ka7 {[%clk
0:00:13.5]} 28. Rb5 {[%clk 0:01:30.5]} 28... Rd5 {[%clk 0:00:03.9]} 29. Rxc7+
{[%clk 0:01:27.7]} 29... Ka6 {[%clk 0:00:04.5]} 30. Rxd5 {[%clk 0:01:26]} 30...
Rxd5 {[%clk 0:00:05.4]} 31. Rxf7 {[%clk 0:01:26.8]} 31... Rd6 {[%clk 0:00:03.3]}
32. a4 {[%clk 0:01:25.4]} 32... Kb6 {[%clk 0:00:02.9]} 33. Rxh7 {[%clk
0:01:25.8]} 33... Rc6 {[%clk 0:00:02.2]} 34. Rf7 {[%clk 0:01:24.9]} 34... Kc5
{[%clk 0:00:02.8]} 35. Rb7 {[%clk 0:01:24.4]} 35... Kc4 {[%clk 0:00:02.3]} 36.
Rb5 {[%clk 0:01:24.7]} 36... Ra6 {[%clk 0:00:03]} 37. h4 {[%clk 0:01:25]} 37...
Kxc3 {[%clk 0:00:03.7]} 38. g4 {[%clk 0:01:25]} 38... Kc4 {[%clk 0:00:03.2]} 39.
Kg2 {[%clk 0:01:25.6]} 39... Kd4 {[%clk 0:00:03.5]} 40. h5 {[%clk 0:01:26.2]}
40... e4 {[%clk 0:00:02.5]} 41. fxe4 {[%clk 0:01:25.8]} 41... Kxe4 {[%clk
0:00:02.8]} 42. Kg3 {[%clk 0:01:26.5]} 42... Kd4 {[%clk 0:00:03.2]} 43. f3
{[%clk 0:01:27.4]} 1-0

[Event "Early-Titled-Tuesday-Blitz-May-28-2024"]
[Site "Chess.com"]
[Date "2024.05.28"]
[Round "2"]
[White "Anton_Demchenko"]
[Black "Yan_Dyomin2010"]
[Result "1-0"]
[WhiteElo "2958"]
[BlackElo "2611"]
[TimeControl "180+1"]
[EndTime "8:17:53 PDT"]
[Termination "Anton_Demchenko won by resignation"]

1. e4 {[%clk 0:03:00.9]} 1... c5 {[%clk 0:02:58]} 2. Nc3 {[%clk 0:03:00.2]} 2...
Nc6 {[%clk 0:02:57.1]} 3. Bb5 {[%clk 0:03:00.6]} 3... Nd4 {[%clk 0:02:56.4]} 4.
a4 {[%clk 0:03:00.8]} 4... e6 {[%clk 0:02:55.2]} 5. Nge2 {[%clk 0:03:00.1]} 5...
Nxe2 {[%clk 0:02:54.8]} 6. Qxe2 {[%clk 0:02:57.4]} 6... Ne7 {[%clk 0:02:54.5]}
7. O-O {[%clk 0:02:54.5]} 7... a6 {[%clk 0:02:53.9]} 8. Bc4 {[%clk 0:02:54.2]}
8... Nc6 {[%clk 0:02:53.8]} 9. d3 {[%clk 0:02:46.9]} 9... Be7 {[%clk 0:02:53.1]}
10. f4 {[%clk 0:02:44.9]} 10... O-O {[%clk 0:02:53.4]} 11. f5 {[%clk 0:01:55.9]}
11... Bf6 {[%clk 0:02:47]} 12. Be3 {[%clk 0:01:38.9]} 12... b6 {[%clk 0:02:43]}
13. Rae1 {[%clk 0:01:18.5]} 13... Bb7 {[%clk 0:02:37.8]} 14. Kh1 {[%clk
0:00:54.5]} 14... Nd4 {[%clk 0:02:23.8]} 15. Qf2 {[%clk 0:00:52.7]} 15... d5
{[%clk 0:02:10.4]} 16. Ba2 {[%clk 0:00:52.7]} 16... dxe4 {[%clk 0:01:46.2]} 17.
dxe4 {[%clk 0:00:52.2]} 17... exf5 {[%clk 0:01:46.2]} 18. Nd5 {[%clk 0:00:42.1]}
18... Bh4 {[%clk 0:01:37.1]} 19. g3 {[%clk 0:00:39.1]} 19... fxe4 {[%clk
0:01:31.1]} 20. Nxb6 {[%clk 0:00:36.3]} 20... Qxb6 {[%clk 0:01:26.1]} 21. gxh4
{[%clk 0:00:36.9]} 21... Qxb2 {[%clk 0:01:08.5]} 22. Bxf7+ {[%clk 0:00:36.4]}
22... Kh8 {[%clk 0:01:08.1]} 23. Rb1 {[%clk 0:00:37.2]} 23... Qxc2 {[%clk
0:00:32.7]} 24. Rxb7 {[%clk 0:00:37.4]} 24... Qxa4 {[%clk 0:00:30.7]} 25. h5
{[%clk 0:00:31.6]} 25... Qc6 {[%clk 0:00:26.4]} 26. h6 {[%clk 0:00:30.9]} 1-0

[Event "Early-Titled-Tuesday-Blitz-May-28-2024"]
[Site "Chess.com"]
[Date "2024.05.28"]
[Round "2"]
[White "remyrushbrooke"]
[Black "Aryan_Tamadon"]
[Result "0-1"]
[WhiteElo "2262"]
[BlackElo "2505"]
[TimeControl "180+1"]
[EndTime "8:17:54 PDT"]
[Termination "Aryan_Tamadon won on time"]

1. d4 {[%clk 0:03:00.9]} 1... b6 {[%clk 0:02:56.8]} 2. Nf3 {[%clk 0:02:55.9]}
2... Bb7 {[%clk 0:02:56.8]} 3. g3 {[%clk 0:02:56.2]} 3... g6 {[%clk 0:02:56.9]}
4. Bg2 {[%clk 0:02:56.1]} 4... Bg7 {[%clk 0:02:57.7]} 5. O-O {[%clk 0:02:56.2]}
5... Nf6 {[%clk 0:02:57.2]} 6. c4 {[%clk 0:02:55.9]} 6... d6 {[%clk 0:02:57.6]}
7. Nc3 {[%clk 0:02:54.4]} 7... O-O {[%clk 0:02:58.3]} 8. h3 {[%clk 0:02:49.5]}
8... Na6 {[%clk 0:02:56.6]} 9. a3 {[%clk 0:02:46.9]} 9... c5 {[%clk 0:02:56.8]}
10. d5 {[%clk 0:02:43.4]} 10... Nc7 {[%clk 0:02:56.6]} 11. e4 {[%clk 0:02:37.9]}
11... e6 {[%clk 0:02:56.1]} 12. Qc2 {[%clk 0:02:37.6]} 12... a6 {[%clk 0:02:55]}
13. Rd1 {[%clk 0:02:23]} 13... Qe7 {[%clk 0:02:54.3]} 14. e5 {[%clk 0:02:18.2]}
14... dxe5 {[%clk 0:02:53]} 15. d6 {[%clk 0:02:17.7]} 15... Qd7 {[%clk
0:02:51.2]} 16. dxc7 {[%clk 0:02:16.8]} 16... Qxc7 {[%clk 0:02:51.8]} 17. Bg5
{[%clk 0:01:57]} 17... Nd7 {[%clk 0:02:51.4]} 18. Ne4 {[%clk 0:01:48.8]} 18...
f5 {[%clk 0:02:47.7]} 19. Nd6 {[%clk 0:01:46.4]} 19... Bc6 {[%clk 0:02:48.4]}
20. Be7 {[%clk 0:01:44.3]} 20... Rfb8 {[%clk 0:02:46.4]} 21. Ng5 {[%clk
0:01:43.9]} 21... Bxg2 {[%clk 0:02:45.4]} 22. Kxg2 {[%clk 0:01:30.7]} 22... Nf6
{[%clk 0:02:46.1]} 23. Bxf6 {[%clk 0:01:29.9]} 23... Bxf6 {[%clk 0:02:47]} 24.
Nxe6 {[%clk 0:01:01.6]} 24... Qe7 {[%clk 0:02:47.1]} 25. Nxf5 {[%clk 0:00:55.2]}
25... Qxe6 {[%clk 0:02:44.9]} 26. Rd6 {[%clk 0:00:52]} 26... Qxf5 {[%clk
0:02:38.9]} 27. Qxf5 {[%clk 0:00:51.7]} 27... gxf5 {[%clk 0:02:39.7]} 28. Rxf6
{[%clk 0:00:51.8]} 28... Rf8 {[%clk 0:02:39.2]} 29. Rxb6 {[%clk 0:00:50.7]}
29... Rab8 {[%clk 0:02:39.7]} 30. Rxb8 {[%clk 0:00:40.5]} 30... Rxb8 {[%clk
0:02:39.6]} 31. Re1 {[%clk 0:00:40.9]} 31... e4 {[%clk 0:02:39.3]} 32. Re2
{[%clk 0:00:30.7]} 32... Kf7 {[%clk 0:02:39.5]} 33. f3 {[%clk 0:00:29.5]} 33...
exf3+ {[%clk 0:02:39.3]} 34. Kxf3 {[%clk 0:00:30.4]} 34... Kf6 {[%clk
0:02:38.2]} 35. Rd2 {[%clk 0:00:28]} 35... Ke5 {[%clk 0:02:35.6]} 36. Rd5+
{[%clk 0:00:27.2]} 36... Ke6 {[%clk 0:02:36]} 37. Rxc5 {[%clk 0:00:25.8]} 37...
Rxb2 {[%clk 0:02:36.7]} 38. Rc6+ {[%clk 0:00:25.8]} 38... Ke5 {[%clk 0:02:37.3]}
39. Rxa6 {[%clk 0:00:24]} 39... Rb3+ {[%clk 0:02:38]} 40. Kf2 {[%clk 0:00:22]}
40... Rc3 {[%clk 0:02:38.9]} 41. Ra7 {[%clk 0:00:17.1]} 41... h6 {[%clk
0:02:38.4]} 42. Ra5+ {[%clk 0:00:15.2]} 42... Ke4 {[%clk 0:02:38.6]} 43. c5
{[%clk 0:00:11.4]} 43... Rc2+ {[%clk 0:02:37.9]} 44. Ke1 {[%clk 0:00:12]} 44...
Rc3 {[%clk 0:02:33.9]} 45. Ra6 {[%clk 0:00:10.7]} 45... Rxg3 {[%clk 0:02:30.9]}
46. Rxh6 {[%clk 0:00:09]} 46... f4 {[%clk 0:02:24.7]} 47. c6 {[%clk 0:00:07.2]}
47... Rc3 {[%clk 0:02:25.2]} 48. Re6+ {[%clk 0:00:06.1]} 48... Kf3 {[%clk
0:02:25.8]} 49. Kd2 {[%clk 0:00:05.1]} 49... Rc5 {[%clk 0:02:22.8]} 50. Rg6
{[%clk 0:00:03.4]} 50... Kf2 {[%clk 0:02:22.8]} 51. a4 {[%clk 0:00:02.7]} 51...
f3 {[%clk 0:02:23.2]} 52. h4 {[%clk 0:00:02.5]} 52... Kf1 {[%clk 0:02:23]} 53.
Ke3 {[%clk 0:00:01.1]} 53... Rc3+ {[%clk 0:02:20.1]} 54. Kd2 {[%clk 0:00:01]}
54... Rc4 {[%clk 0:02:17.9]} 55. Ke3 {[%clk 0:00:01]} 55... f2 {[%clk
0:02:16.9]} 56. Kf3 {[%clk 0:00:01.2]} 56... Rc3+ {[%clk 0:02:15.4]} 57. Ke4
{[%clk 0:00:01.4]} 57... Ke2 {[%clk 0:02:15.8]} 58. Rf6 {[%clk 0:00:01.6]} 58...
Rxc6 {[%clk 0:02:07.9]} 59. Rxc6 {[%clk 0:00:01.2]} 59... f1=Q {[%clk
0:02:07.8]} 60. Rc2+ {[%clk 0:00:01.8]} 60... Kd1 {[%clk 0:02:08.3]} 61. Ra2
{[%clk 0:00:02]} 61... Qc4+ {[%clk 0:02:08.4]} 62. Ke5 {[%clk 0:00:02.5]} 62...
Qxa2 {[%clk 0:02:09.3]} 0-1

[Event "Early-Titled-Tuesday-Blitz-May-28-2024"]
[Site "Chess.com"]
[Date "2024.05.28"]
[Round "2"]
[White "Nekoo04"]
[Black "MrLion3000"]
[Result "0-1"]
[WhiteElo "2418"]
[BlackElo "2790"]
[TimeControl "180+1"]
[EndTime "8:17:58 PDT"]
[Termination "MrLion3000 won by checkmate"]

1. d4 {[%clk 0:03:00.9]} 1... Nf6 {[%clk 0:02:58.8]} 2. c4 {[%clk 0:03:01.1]}
2... e6 {[%clk 0:02:58.9]} 3. Nf3 {[%clk 0:03:00.7]} 3... d5 {[%clk 0:02:59]} 4.
g3 {[%clk 0:03:00.9]} 4... Bb4+ {[%clk 0:02:58.3]} 5. Bd2 {[%clk 0:03:00.4]}
5... Be7 {[%clk 0:02:58.3]} 6. Bg2 {[%clk 0:03:00.5]} 6... c6 {[%clk 0:02:58.7]}
7. O-O {[%clk 0:03:00.1]} 7... Nbd7 {[%clk 0:02:58.9]} 8. Qc2 {[%clk 0:03:00.4]}
8... Ne4 {[%clk 0:02:59.1]} 9. Nc3 {[%clk 0:02:47.6]} 9... Nxd2 {[%clk
0:02:58.6]} 10. Nxd2 {[%clk 0:02:47.4]} 10... O-O {[%clk 0:02:58.2]} 11. e4
{[%clk 0:02:47.2]} 11... dxc4 {[%clk 0:02:58.2]} 12. Nxc4 {[%clk 0:02:48.1]}
12... b5 {[%clk 0:02:58.8]} 13. Ne3 {[%clk 0:02:43.4]} 13... Qb6 {[%clk
0:02:58.6]} 14. d5 {[%clk 0:02:37]} 14... c5 {[%clk 0:02:55.9]} 15. a4 {[%clk
0:02:19.2]} 15... b4 {[%clk 0:02:55.9]} 16. Nc4 {[%clk 0:02:16.4]} 16... Qb8
{[%clk 0:02:52.8]} 17. d6 {[%clk 0:02:08.2]} 17... Bxd6 {[%clk 0:02:24]} 18. e5
{[%clk 0:01:36.3]} 18... Bxe5 {[%clk 0:02:13]} 19. Bxa8 {[%clk 0:01:17]} 19...
Qxa8 {[%clk 0:02:12.9]} 20. Nb5 {[%clk 0:01:10.1]} 20... Bd4 {[%clk 0:02:00.6]}
21. Rfd1 {[%clk 0:00:50.6]} 21... e5 {[%clk 0:02:00.8]} 22. Ncd6 {[%clk
0:00:36.8]} 22... Nf6 {[%clk 0:01:41.7]} 23. Nxd4 {[%clk 0:00:35.5]} 23... cxd4
{[%clk 0:01:42]} 24. Nxc8 {[%clk 0:00:21.8]} 24... Rxc8 {[%clk 0:01:42.9]} 25.
Qf5 {[%clk 0:00:22.2]} 25... Re8 {[%clk 0:01:41.4]} 26. Rac1 {[%clk 0:00:21.8]}
26... Qd8 {[%clk 0:01:33.3]} 27. Rc5 {[%clk 0:00:19.9]} 27... e4 {[%clk
0:01:31.5]} 28. Rdc1 {[%clk 0:00:15.8]} 28... d3 {[%clk 0:01:23.1]} 29. Rd1
{[%clk 0:00:09.9]} 29... Qd4 {[%clk 0:01:17.8]} 30. Rc7 {[%clk 0:00:08.3]} 30...
g6 {[%clk 0:01:12.2]} 31. Qc5 {[%clk 0:00:07.7]} 31... Qxb2 {[%clk 0:01:09.1]}
32. Rxa7 {[%clk 0:00:05.9]} 32... e3 {[%clk 0:00:55.5]} 33. Rxd3 {[%clk
0:00:04]} 33... Qxf2+ {[%clk 0:00:53]} 34. Kh1 {[%clk 0:00:03.9]} 34... Qf1#
{[%clk 0:00:53.9]} 0-1